lending/lending_fUSD_20250719
["ID","MTS","AMOUNT","RATE_DAILY","PERIOD"]
[373249894,1752922304550,-900.0,0.00023,8]
[373249895,1752922304559,-900.0,0.00023,8]
[373249896,1752922304568,-900.0,0.00023,8]
[373249897,1752922304579,-900.0,0.00023,8]
[373249898,1752922304588,-200.0,0.00023,2]
[373249899,1752922304598,-839.16344753,0.00023,3]
[373249900,1752922304609,-151.96,0.00023014,2]
[373249901,1752922304618,-1687.77813,0.0002302,2]
[373249902,1752922304628,-1000.0,0.00023045,2]
[373249903,1752922304638,-1000.0,0.00023049,2]
[373249904,1752922304650,-150.0,0.00023061,5]
[373249905,1752922304659,-150.0,0.00023061,5]
[373249906,1752922304669,-257.08312178,0.00023061,5]
[373249907,1752922304678,-272.30678157,0.00023091,2]
[373249908,1752922304688,-187.23399121,0.000231,2]
[373249909,1752922304698,-184.40651866,0.000231,2]
[373249910,1752922304707,-207.98,0.000231,2]
[373249911,1752922304718,-1000.0,0.00023136,2]
[373249912,1752922304728,-1011.7,0.00023137,7]
[373249913,1752922304737,-1011.7,0.00023137,7]
[373249914,1752922304746,-150.0,0.0002318,2]
[373249915,1752922304756,-9755.96,0.000232,7]
[373249916,1752922304766,-427987.72,0.000232,7]
[373249917,1752922304775,-47539.10525655,0.000232,2]
[373249918,1752922304785,-150.0,0.00023224,2]
[373249919,1752922304799,-150.0,0.00023261,2]
[373249920,1752922304810,-1220.0,0.00023274,2]
[373249921,1752922304819,-150.0,0.00023291,2]
[373249922,1752922304829,-152.0,0.00023293,7]
[373249923,1752922304841,-3677.06,0.000233,2]
[373249924,1752922304850,-3677.05,0.000233,2]
[373249925,1752922304860,-2432.01,0.000233,2]
[373249926,1752922304869,-207.0,0.0002331,2]
[373249927,1752922304880,-208.0,0.0002331,2]
[373249928,1752922304891,-212.0,0.0002331,2]
[373249929,1752922304900,-189.041,0.00023335,2]
[373249930,1752922304910,-1400.0,0.00023356,2]
[373249931,1752922304919,-589.90786594,0.00023379,2]
[373249932,1752922304929,-1000.0,0.00023384,2]
[373249933,1752922304939,-600.0,0.00023398,2]
[373249934,1752922304949,-1011.7,0.00023411,7]
[373249935,1752922304958,-1011.7,0.00023411,7]
[373249936,1752922304968,-150.0,0.00023417,2]
[373249937,1752922304977,-1000.0,0.00023419,2]
[373249938,1752922304987,-500.0,0.00023421,2]
[373249939,1752922304997,-269.28003631,0.00023443,2]
[373249940,1752922305007,-390.0,0.00023463,2]
[373249941,1752922305017,-150.0,0.00023478,2]
[373249942,1752922305027,-150.0,0.00023489,2]
[373249943,1752922305037,-390.0,0.00023497,2]
[373249944,1752922305047,-390.0,0.00023499,2]
[373249945,1752922305056,-10483.46217107,0.000235,2]
[373249946,1752922305065,-200.0,0.000235,2]
[373249947,1752922305075,-10588.72784581,0.000235,30]
[373249948,1752922305085,-210.82967408,0.000235,30]
[373249949,1752922305096,-200.0,0.0002351,7]
[373249950,1752922305106,-300.0,0.00023511,2]
[373249951,1752922305115,-150.0,0.00023525,2]
[373249952,1752922305125,-150.0,0.00023558,2]
[373249953,1752922305135,-150.0,0.00023564,2]
[373249954,1752922305144,-150.0,0.00023574,2]
[373249955,1752922305154,-150.0,0.00023581,2]
[373249956,1752922305163,-152.0,0.00023598,8]
[373249957,1752922305172,-150.0,0.00023611,2]
[373249958,1752922305182,-150.0,0.00023612,2]
[373249959,1752922305192,-150.0,0.00023633,2]
[373249960,1752922305201,-150.0,0.00023644,2]
[373249961,1752922305211,-1000.0,0.00023647,2]
[373249962,1752922305221,-207.0,0.0002365,2]
[373249963,1752922305230,-208.0,0.0002365,2]
[373249964,1752922305240,-212.0,0.0002365,2]
[373249965,1752922305249,-239.84119403,0.00023658,2]
[373249966,1752922305259,-1011.7,0.00023685,7]
[373249967,1752922305268,-1011.7,0.00023685,7]
[373249968,1752922305278,-150.0,0.00023687,2]
[373249969,1752922305287,-3677.06,0.000237,2]
[373249970,1752922305297,-3677.05,0.000237,2]
[373249971,1752922305306,-2432.01,0.000237,2]
[373249972,1752922305316,-239.0,0.000237,2]
[373249973,1752922305326,-378.0,0.000237,2]
[373249974,1752922305335,-773.0,0.000237,2]
[373249975,1752922305346,-150.0,0.00023702,2]
[373249976,1752922305355,-150.0,0.00023713,2]
[373249977,1752922305364,-1000.0,0.00023721,2]
[373249978,1752922305374,-150.0,0.00023754,2]
[373249979,1752922305384,-153.61448937,0.00023759,2]
[373249980,1752922305394,-390.0,0.00023787,2]
[373249981,1752922305404,-4000.86006244,0.00023789,3]
[373249982,1752922305414,-1000.0,0.00023789,2]
[373249983,1752922305424,-500.0,0.00023789,2]
[373249984,1752922305433,-500.0,0.00023789,2]
[373249985,1752922305442,-500.0,0.00023789,2]
[373249986,1752922305452,-773.0,0.00023789,2]
[373249987,1752922305461,-150.0,0.00023791,2]
[373249988,1752922305470,-150.0,0.00023825,2]
[373249989,1752922305480,-947.77,0.00023836,2]
[373249990,1752922305489,-1000.0,0.00023836,2]
[373249991,1752922305498,-1000.0,0.00023867,2]
[373249992,1752922305508,-1000.0,0.00023874,2]
[373249993,1752922305528,-162.0,0.0002388,2]
[373249994,1752922305539,-390.0,0.00023881,2]
[373249995,1752922305548,-390.0,0.00023889,2]
[373249996,1752922305558,-2012.6516,0.00023899,2]
[373249997,1752922305567,-854.0,0.00023899,2]
[373249998,1752922305576,-152.0,0.00023903,9]
[373249999,1752922305585,-1300.0,0.00023904,2]
[373250000,1752922305595,-390.0,0.00023923,2]
[373250001,1752922305604,-1000.0,0.0002393,2]
[373250002,1752922305613,-150.0,0.00023939,2]
[373250003,1752922305623,-600.0,0.00023946,2]
[373250004,1752922305632,-1011.7,0.00023959,7]
[373250005,1752922305641,-1011.7,0.00023959,7]
[373250006,1752922305651,-500.44286312,0.00023961,2]
[373250007,1752922305660,-150.0,0.00023967,2]
[373250008,1752922305669,-1000.0,0.00023973,2]
[373250009,1752922305678,-150.0,0.00023978,2]
[373250010,1752922305688,-13023.25827494,0.00023979,2]
[373250011,1752922305697,-1000.0,0.00023985,2]
[373250012,1752922305706,-207.0,0.0002399,2]
[373250013,1752922305716,-208.0,0.0002399,2]
[373250014,1752922305726,-212.0,0.0002399,2]
[373250015,1752922305735,-207.0,0.0002399,2]
[373250016,1752922305746,-204.0,0.0002399,2]
[373250017,1752922305757,-98871.81626795,0.00023995,2]
[373250018,1752922305767,-899.99999904,0.00024,25]
[373250019,1752922305776,-500.0,0.00024,7]
[373250020,1752922305785,-500.0,0.00024,7]
[373250021,1752922305796,-500.0,0.00024,7]
[373250022,1752922305805,-500.0,0.00024,7]
[373250023,1752922305815,-500.0,0.00024,7]
[373250024,1752922305824,-500.0,0.00024,7]
[373250025,1752922305834,-500.0,0.00024,7]
[373250026,1752922305844,-500.0,0.00024,7]
[373250027,1752922305853,-500.0,0.00024,7]
[373250028,1752922305862,-500.0,0.00024,7]
[373250029,1752922305872,-500.0,0.00024,7]
[373250030,1752922305882,-500.0,0.00024,7]
[373250031,1752922305892,-243.25,0.00024,7]
[373250032,1752922305901,-500.0,0.00024,7]
[373250033,1752922305911,-47503.71680308,0.00024,4]
[373250034,1752922305920,-1350.04240266,0.00024,5]
[373250035,1752922305930,-160.0,0.00024,7]
[373250036,1752922305939,-1000.0,0.00024,2]
[373250037,1752922305948,-476.80070012,0.00024,30]
[373250038,1752922305958,-4000.0,0.00024,4]
[373250039,1752922305967,-839.16344753,0.00024,7]
[373250040,1752922305977,-1000.0,0.00024002,2]
[373250041,1752922305986,-2110.0,0.0002401,2]
[373250042,1752922305996,-150.0,0.00024013,2]
[373250043,1752922306006,-1687.77814,0.0002402,2]
[373250044,1752922306015,-150.0,0.00024049,2]
[373250045,1752922306024,-1000.0,0.00024053,2]
[373250046,1752922306033,-1000.0,0.00024058,2]
[373250047,1752922306043,-300.0,0.00024059,2]
[373250048,1752922306052,-150.0,0.00024061,2]
[373250049,1752922306062,-150.0,0.00024062,2]
[373250050,1752922306071,-1000.0,0.00024066,2]
[373250051,1752922306081,-150.0,0.00024067,2]
[373250052,1752922306092,-150.0,0.00024086,2]
[373250053,1752922306101,-150.0,0.00024088,2]
[373250054,1752922306110,-1000.0,0.00024093,2]
[373250055,1752922306119,-1000.0,0.00024098,2]
[373250056,1752922306128,-1000.0,0.000241,2]
[373250057,1752922306138,-200.0,0.000241,7]
[373250058,1752922306147,-151.96,0.0002411,2]
[373250059,1752922306157,-1000.0,0.00024121,2]
[373250060,1752922306168,-150.0,0.00024122,2]
[373250061,1752922306177,-1000.0,0.00024123,2]
[373250062,1752922306191,-150.0,0.00024126,2]
[373250063,1752922306206,-266.72955252,0.00024162,2]
[373250064,1752922306217,-150.0,0.00024191,2]
[373250065,1752922306227,-1000.0,0.000242,2]
[373250066,1752922306237,-152.0,0.00024208,10]
[373250067,1752922306246,-150.0,0.00024218,2]
[373250068,1752922306256,-1011.7,0.00024233,7]
[373250069,1752922306266,-1011.7,0.00024233,7]
[373250070,1752922306275,-390.0,0.00024233,2]
[373250071,1752922306285,-150.0,0.00024237,2]
[373250072,1752922306295,-150.0,0.00024239,2]
[373250073,1752922306305,-150.0,0.0002424,2]
[373250074,1752922306314,-150.0,0.00024249,2]
[373250075,1752922306323,-150.0,0.00024253,2]
[373250076,1752922306336,-150.0,0.00024255,2]
[373250077,1752922306345,-150.0,0.00024259,2]
[373250078,1752922306355,-1000.0,0.00024267,2]
[373250079,1752922306365,-150.0,0.0002427,2]
[373250080,1752922306374,-150.0,0.00024271,2]
[373250081,1752922306383,-150.0,0.00024272,2]
[373250082,1752922306392,-1000.0,0.00024291,2]
[373250083,1752922306401,-150.0,0.00024293,2]
[373250084,1752922306411,-9755.96,0.000243,7]
[373250085,1752922306420,-427987.72,0.000243,7]
[373250086,1752922306429,-1000.0,0.000243,2]
[373250087,1752922306439,-150.0,0.00024302,2]
[373250088,1752922306448,-150.0,0.00024309,2]
[373250089,1752922306458,-150.0,0.00024318,2]
[373250090,1752922306467,-150.0,0.00024319,2]
[373250091,1752922306476,-228.0,0.0002432,2]
[373250092,1752922306486,-150.0,0.00024323,2]
[373250093,1752922306495,-207.0,0.0002433,2]
[373250094,1752922306503,-208.0,0.0002433,2]
[373250095,1752922306512,-212.0,0.0002433,2]
[373250096,1752922306522,-207.0,0.0002433,2]
[373250097,1752922306532,-204.0,0.0002433,2]
[373250098,1752922306540,-150.0,0.00024354,2]
[373250099,1752922306550,-150.0,0.00024359,2]
[373250100,1752922306559,-150.0,0.00024366,2]
[373250101,1752922306568,-150.0,0.00024379,2]
[373250102,1752922306578,-1000.0,0.00024387,2]
[373250103,1752922306769,-150.0,0.00024389,2]
[373250104,1752922306779,-150.0,0.00024391,2]
[373250105,1752922306789,-1000.0,0.000244,2]
[373250106,1752922306798,-150.0,0.0002441,2]
[373250107,1752922306807,-150.0,0.00024411,2]
[373250108,1752922306816,-1103.03258553,0.00024412,5]
[373250109,1752922306825,-1054.66090852,0.00024412,5]
[373250110,1752922306835,-1081.50304866,0.00024412,5]
[373250111,1752922306844,-1091.50921398,0.00024412,5]
[373250112,1752922306853,-1046.29345155,0.00024412,5]
[373250113,1752922306863,-1104.18287748,0.00024412,5]
[373250114,1752922306872,-1019.07054688,0.00024412,5]
[373250115,1752922306882,-1011.58517458,0.00024412,5]
[373250116,1752922306891,-1056.22765793,0.00024412,5]
[373250117,1752922306900,-1087.69432155,0.00024412,5]
[373250118,1752922306910,-1049.30312481,0.00024412,5]
[373250119,1752922306919,-1048.0071671,0.00024412,5]
[373250120,1752922306928,-1117.59114869,0.00024412,5]
[373250121,1752922306938,-1013.24881286,0.00024412,5]
[373250122,1752922306947,-1023.70675389,0.00024412,5]
[373250123,1752922306956,-1000.83764449,0.00024412,5]
[373250124,1752922306966,-1121.29078493,0.00024412,5]
[373250125,1752922306975,-1044.553863,0.00024412,5]
[373250126,1752922306985,-1045.63808799,0.00024412,5]
[373250127,1752922306994,-1056.58845462,0.00024412,5]
[373250128,1752922307003,-1026.40987074,0.00024412,5]
[373250129,1752922307012,-1145.51949429,0.00024412,5]
[373250130,1752922307022,-1113.36729452,0.00024412,5]
[373250131,1752922307031,-1082.46581954,0.00024412,5]
[373250132,1752922307040,-1088.46325598,0.00024412,5]
[373250133,1752922307050,-1339.98810931,0.00024412,5]
[373250134,1752922307059,-605.16868025,0.00024417,4]
[373250135,1752922307069,-150.0,0.00024418,2]
[373250136,1752922307078,-150.0,0.0002442,2]
[373250137,1752922307088,-150.0,0.00024421,2]
[373250138,1752922307097,-150.0,0.00024424,2]
[373250139,1752922307107,-150.0,0.0002443,2]
[373250140,1752922307116,-150.0,0.00024448,2]
[373250141,1752922307126,-1400.0,0.00024452,2]
[373250142,1752922307136,-1000.0,0.00024458,2]
[373250143,1752922307145,-150.0,0.00024463,2]
[373250144,1752922307155,-150.0,0.00024463,2]
[373250145,1752922307165,-1000.0,0.00024465,2]
[373250146,1752922307175,-150.0,0.00024478,2]
[373250147,1752922307185,-1000.0,0.00024478,2]
[373250148,1752922307194,-1000.0,0.00024479,2]
[373250149,1752922307203,-150.0,0.0002448,2]
[373250150,1752922307213,-390.0,0.00024487,2]
[373250151,1752922307223,-600.0,0.00024494,2]
[373250152,1752922307233,-1000.0,0.000245,2]
[373250153,1752922307242,-1000.0,0.00024504,2]
[373250154,1752922307251,-150.0,0.00024505,2]
[373250155,1752922307261,-150.0,0.00024506,2]
[373250156,1752922307270,-1011.7,0.00024507,7]
[373250157,1752922307280,-1011.7,0.00024507,7]
[373250158,1752922307289,-200.0,0.0002451,7]
[373250159,1752922307298,-2110.0,0.0002451,2]
[373250160,1752922307308,-152.0,0.00024513,11]
[373250161,1752922307319,-150.0,0.00024529,2]
[373250162,1752922307328,-269.28003631,0.00024535,2]
[373250163,1752922307337,-150.0,0.00024537,2]
[373250164,1752922307348,-150.0,0.00024539,2]
[373250165,1752922307357,-150.0,0.00024541,2]
[373250166,1752922307367,-150.0,0.00024541,2]
[373250167,1752922307377,-150.0,0.00024544,2]
[373250168,1752922307387,-390.0,0.00024548,2]
[373250169,1752922307397,-390.0,0.00024553,2]
[373250170,1752922307406,-1000.0,0.00024568,2]
[373250171,1752922307416,-150.0,0.00024574,2]
[373250172,1752922307425,-150.0,0.00024586,2]
[373250173,1752922307435,-150.0,0.00024586,2]
[373250174,1752922307444,-150.0,0.00024602,2]
[373250175,1752922307453,-300.0,0.00024607,2]
[373250176,1752922307463,-1000.0,0.00024632,2]
[373250177,1752922307472,-1000.0,0.00024636,2]
[373250178,1752922307482,-722.80349108,0.00024639,2]
[373250179,1752922307492,-150.0,0.00024649,2]
[373250180,1752922307502,-150.0,0.0002465,2]
[373250181,1752922307511,-150.0,0.00024651,2]
[373250182,1752922307520,-1000.0,0.00024651,2]
[373250183,1752922307530,-150.0,0.00024652,2]
[373250184,1752922307539,-150.0,0.00024655,2]
[373250185,1752922307549,-150.0,0.00024658,2]
[373250186,1752922307558,-153.0,0.00024658,2]
[373250187,1752922307567,-153.0,0.00024658,2]
[373250188,1752922307577,-153.0,0.00024658,2]
[373250189,1752922307586,-153.0,0.00024658,2]
[373250190,1752922307596,-1000.0,0.00024658,2]
[373250191,1752922307606,-207.0,0.0002466,2]
[373250192,1752922307616,-208.0,0.0002466,2]
[373250193,1752922307625,-212.0,0.0002466,2]
[373250194,1752922307635,-207.0,0.0002466,2]
[373250195,1752922307648,-204.0,0.0002466,2]
[373250196,1752922307657,-212.0,0.0002466,2]
[373250197,1752922307667,-208.0,0.0002466,2]
[373250198,1752922307676,-203.0,0.0002466,2]
[373250199,1752922307685,-207.0,0.0002466,2]
[373250200,1752922307695,-228.0,0.0002466,2]
[373250201,1752922307704,-942.8834785,0.00024661,2]
[373250202,1752922307714,-150.0,0.00024662,2]
[373250203,1752922307723,-150.0,0.0002468,2]
[373250204,1752922307734,-150.0,0.00024684,2]
[373250205,1752922307744,-150.0,0.00024689,2]
[373250206,1752922307754,-150.0,0.00024692,2]
[373250207,1752922307763,-229.14351231,0.00024693,2]
[373250208,1752922307774,-390.0,0.00024695,2]
[373250209,1752922307783,-1000.0,0.00024695,2]
[373250210,1752922307793,-1000.0,0.00024696,2]
[373250211,1752922307803,-150.0,0.00024699,2]
[373250212,1752922307812,-2000.0,0.000247,2]
[373250213,1752922307822,-150.0,0.000247,2]
[373250214,1752922307832,-150.0,0.00024712,2]
[373250215,1752922307842,-228.17,0.00024714,2]
[373250216,1752922307851,-150.0,0.00024742,2]
[373250217,1752922307861,-390.0,0.00024742,2]
[373250218,1752922307871,-150.0,0.00024745,2]
[373250219,1752922307880,-150.0,0.00024772,2]
[373250220,1752922307890,-150.0,0.0002478,2]
[373250221,1752922307900,-150.0,0.0002478,2]
[373250222,1752922307910,-1011.7,0.00024781,7]
[373250223,1752922307919,-1011.7,0.00024781,7]
[373250224,1752922307928,-150.0,0.00024784,2]
[373250225,1752922307938,-150.0,0.00024787,2]
[373250226,1752922307948,-150.0,0.00024791,2]
[373250227,1752922307958,-150.0,0.00024797,2]
[373250228,1752922307973,-160.0,0.000248,3]
[373250229,1752922307984,-200519.76747074,0.000248,2]
[373250230,1752922308181,-507.55,0.00019397,2]
[373250231,1752922308191,-694.66,0.00020054,2]
[373250232,1752922308201,-9607.98982077,0.000248,2]
[373250233,1752922308218,-3560.08280005,0.000248,2]
[373250234,1752922308617,-881.69,0.00019178,2]
[373250235,1752922308627,-480.0,0.00019178,2]
[373250236,1752922308637,-460.0,0.00019178,2]
[373250237,1752922308650,-480.0,0.00019178,2]
[373250238,1752922308660,-264.03212631,0.00019178,2]
[373250239,1752922308706,-215.96787369,0.00019178,2]
[373250240,1752922308715,-480.0,0.00019178,2]
[373250241,1752922308726,-320.44812601,0.00019287,2]
[373250242,1752922308770,-159.55187399,0.00019287,2]
[373250243,1752922308780,-480.0,0.00019287,2]
[373250244,1752922308790,-881.69,0.00019287,2]
[373250245,1752922308800,-213.62,0.00019287,2]
[373250246,1752922308810,-442.73449763,0.00019287,2]
[373250247,1752922308820,-480.0,0.00019287,2]
[373250248,1752922308830,-440.0,0.00019287,2]
[373250249,1752922308841,-480.0,0.00019397,2]
[373250250,1752922308851,-423.01617022,0.00019397,2]
[373250251,1752922308861,-881.69,0.00019397,2]
[373250252,1752922308871,-389.87,0.00019397,2]
[373250253,1752922308881,-507.55,0.00019506,2]
[373250254,1752922308890,-480.0,0.00019506,2]
[373250255,1752922308900,-881.69,0.00019506,2]
[373250256,1752922308911,-155.4164257,0.00019616,2]
[373250257,1752922308922,-507.55,0.00019616,2]
[373250258,1752922308931,-881.69,0.00019616,2]
[373250259,1752922308941,-507.55,0.00019726,2]
[373250260,1752922308951,-881.69,0.00019726,2]
[373250261,1752922308961,-507.55,0.00019835,2]
[373250262,1752922308971,-881.69,0.00019835,2]
[373250263,1752922308980,-480.0,0.00019945,2]
[373250264,1752922308990,-507.55,0.00019945,2]
[373250265,1752922309000,-881.69,0.00019945,2]
[373250266,1752922309010,-706.64575697,0.00020045,2]
[373250267,1752922309021,-480.0,0.00020054,2]
[373250268,1752922309031,-507.55,0.00020054,2]
[373250269,1752922309042,-881.69,0.00020054,2]
[373250270,1752922309052,-694.66,0.00020164,2]
[373250271,1752922309062,-511.72529108,0.00020164,2]
[373250272,1752922309072,-507.55,0.00020164,2]
[373250273,1752922309082,-881.69,0.00020164,2]
[373250274,1752922309092,-694.66,0.00020273,2]
[373250275,1752922309102,-507.55,0.00020273,2]
[373250276,1752922309111,-881.69,0.00020273,2]
[373250277,1752922309122,-694.66,0.00020383,2]
[373250278,1752922309132,-507.55,0.00020383,2]
[373250279,1752922309142,-694.66,0.00020493,2]
[373250280,1752922309152,-507.55,0.00020493,2]
[373250281,1752922309162,-694.66,0.00020602,2]
[373250282,1752922309172,-694.66,0.00020712,2]
[373250283,1752922309182,-694.66,0.00020821,2]
[373250284,1752922309192,-694.66,0.00020931,2]
[373250285,1752922309202,-694.66,0.00021041,2]
[373250286,1752922309211,-694.66,0.0002115,2]
[373250287,1752922309220,-706.64575692,0.00021222,2]
[373250288,1752922309230,-694.66,0.0002126,2]
[373250289,1752922309240,-694.66,0.00021369,2]
[373250290,1752922309250,-706.64575692,0.00022398,2]
[373250291,1752922309260,-666.669,0.00023335,2]
[373250292,1752922309269,-706.64575692,0.00023575,2]
[373250293,1752922309279,-706.64575692,0.00024751,2]
[373250294,1752922309289,-406817.15310444,0.000248,2]
[373250295,1752922309299,-150.0,0.00024802,2]
[373250296,1752922309308,-150.0,0.00024805,2]
[373250297,1752922309318,-150.0,0.00024808,2]
[373250298,1752922309328,-150.0,0.00024817,2]
[373250299,1752922309338,-150.0,0.00024817,2]
[373250300,1752922309349,-152.0,0.00024817,12]
[373250301,1752922309359,-150.0,0.00024819,2]
[373250302,1752922309369,-150.0,0.0002482,2]
[373250303,1752922309378,-150.0,0.00024822,2]
[373250304,1752922309388,-150.0,0.00024822,2]
[373250305,1752922309398,-150.0,0.00024826,2]
[373250306,1752922309408,-150.0,0.00024829,2]
[373250307,1752922309418,-150.0,0.00024843,2]
[373250308,1752922309427,-150.0,0.00024849,2]
[373250309,1752922309437,-150.0,0.00024849,2]
[373250310,1752922309446,-150.0,0.00024852,2]
[373250311,1752922309456,-150.0,0.00024853,2]
[373250312,1752922309465,-150.0,0.00024855,2]
[373250313,1752922309475,-150.0,0.00024858,2]
[373250314,1752922309683,-390.0,0.00024871,2]
[373250315,1752922309696,-150.0,0.00024872,2]
[373250316,1752922309706,-2000.0,0.00024875,2]
[373250317,1752922309715,-2000.0,0.00024875,2]
[373250318,1752922309725,-150.0,0.00024878,2]
[373250319,1752922309735,-390.0,0.00024882,2]
[373250320,1752922309744,-508.0,0.00024883,11]
[373250321,1752922309754,-1000.0,0.00024883,2]
[373250322,1752922309763,-150.0,0.00024891,2]
[373250323,1752922309773,-150.0,0.00024891,2]
[373250324,1752922309782,-150.0,0.00024894,2]
[373250325,1752922309792,-150.0,0.00024898,2]
[373250326,1752922309801,-377.74,0.000249,31]
[373250327,1752922309811,-377.74,0.000249,31]
[373250328,1752922309820,-377.74,0.000249,31]
[373250329,1752922309830,-377.74,0.000249,31]
[373250330,1752922309840,-377.74,0.000249,31]
[373250331,1752922309849,-377.74,0.000249,31]
[373250332,1752922309859,-377.74,0.000249,31]
[373250333,1752922309869,-377.74,0.000249,31]
[373250334,1752922309879,-377.74,0.000249,31]
[373250335,1752922309888,-377.74,0.000249,31]
[373250336,1752922309898,-377.74,0.000249,31]
[373250337,1752922309907,-377.74,0.000249,31]
[373250338,1752922309917,-377.74,0.000249,31]
[373250339,1752922309927,-377.74,0.000249,31]
[373250340,1752922309937,-377.74,0.000249,31]
[373250341,1752922309946,-377.74,0.000249,31]
[373250342,1752922309956,-800.0,0.000249,9]
[373250343,1752922309966,-15301.0304505,0.000249,2]
[373250344,1752922628095,500.51,0.00023,30]
[373250345,1752922792597,1000.0,0.0001,5]
[373250346,1752922799037,250.0,0.00015,2]
[373250347,1752922822941,150.0,0.0001,2]
[373250348,1752922888911,154.74,0.00013699,2]
[373250350,1752922950238,500.0,0.0001,3]
[373250351,1752923028035,500.0,0.0001,4]
[373250352,1752923038626,500.0,0.0001,4]
[373250353,1752923166760,176.02,0.00014562,2]
[373250363,1752923432472,-341.69621703,0.000175,2]
[373250364,1752923432482,-150.0,0.000175,2]
[373250365,1752923432492,-261.18161531,0.00017926,2]
[373250366,1752923432502,-150.0,0.00017926,2]
[373250367,1752923432511,-150.0,0.00017926,2]
[373250368,1752923432521,-150.00000001,0.00017926,2]
[373250369,1752923432531,-155.62930471,0.00017926,2]
[373250370,1752923432542,-150.0,0.00017926,2]
[373250371,1752923432552,-150.0,0.00017926,2]
[373250372,1752923432562,-212.02359985,0.00018194,2]
[373250373,1752923432572,-1000.0,0.00018203,2]
[373250374,1752923432582,-161.65,0.00018349,2]
[373250375,1752923432591,-1444.5,0.00018482,2]
[373250376,1752923432601,-200.0,0.00018586,2]
[373250377,1752923432611,-185.36,0.00018708,2]
[373250378,1752923432621,-173.49,0.00018773,2]
[373250379,1752923432630,-150.0,0.0001878,2]
[373250380,1752923432640,-600.0,0.000188,6]
[373250381,1752923432650,-1200.0,0.000189,6]
[373250382,1752923432660,-150.0,0.00018922,2]
[373250383,1752923432669,-1176.0,0.00019,2]
[373250384,1752923432679,-4470.42815598,0.00019042,2]
[373250386,1752923440376,-35469.26451655,0.00019042,2]
[373250387,1752923440386,-605.16868025,0.00019078,2]
[373250388,1752923440396,-168.30002272,0.00019078,2]
[373250389,1752923440405,-160.5918604,0.00019078,2]
[373250390,1752923440414,-3762.98405751,0.00019078,2]
[373250391,1752923440424,-676.41659859,0.00019078,2]
[373250392,1752923440495,-4094.9891,0.00019078,2]
[373250393,1752923440505,-5000.0,0.00019078,2]
[373250394,1752923440515,-7834.8692,0.00019078,2]
[373250395,1752923440524,-160.59186031,0.00019159,2]
[373250396,1752923440533,-156.587,0.00019166,2]
[373250397,1752923440542,-527.81,0.00019168,2]
[373250398,1752923440552,-527.81,0.00019168,2]
[373250399,1752923440561,-396.48450624,0.00019177,2]
[373250400,1752923440570,-200.0,0.00019177,2]
[373250401,1752923440579,-319.14944188,0.00019177,2]
[373250402,1752923440588,-159.869224,0.00019177,2]
[373250403,1752923440597,-500.0,0.00019177,2]
[373250404,1752923440607,-469.42027617,0.00019178,2]